fUSD/lending_fUSD_20250506
["ID","MTS","AMOUNT","RATE_DAILY","PERIOD"]
[360134634,1746562254454,-674.23,0.00019999,2]
[360134635,1746562254465,-674.23,0.00019999,2]
[360134636,1746562254476,-674.23,0.00019999,2]
[360134637,1746562254486,-674.23,0.00019999,2]
[360134638,1746562254498,-674.23,0.00019999,2]
[360134639,1746562254508,-674.23,0.00019999,2]
[360134640,1746562254519,-674.23,0.00019999,2]
[360134641,1746562254530,-674.23,0.00019999,2]
[360134642,1746562254541,-674.23,0.00019999,2]
[360134643,1746562254553,-674.23,0.00019999,2]
[360134644,1746562254563,-674.23,0.00019999,2]
[360134645,1746562254575,-674.23,0.00019999,2]
[360134646,1746562254585,-674.23,0.00019999,2]
[360134647,1746562254597,-674.32381898,0.00019999,2]
[360134648,1746562254607,-4242.74,0.00019999,2]
[360134649,1746562254618,-4242.74,0.00019999,2]
[360134650,1746562254629,-512.69529366,0.00019999,2]
[360134651,1746562254860,500.0,0.00019896,120]
[360134652,1746562254898,500.0,0.00019982,120]
[360134653,1746562254927,500.0,0.00019984,120]
[360134654,1746562254961,500.0,0.00019985,120]
[360134655,1746562254990,500.0,0.00019995,120]
[360134656,1746562255035,500.0,0.00019996,120]
[360134657,1746562255075,500.0,0.00019997,120]
[360134658,1746562255113,500.0,0.00019998,120]
[360134659,1746562255148,500.0,0.00019998,120]
[360134660,1746562255179,500.0,0.00019998,120]
[360134661,1746562255562,183.0920608,0.00019999,120]
[360134662,1746562270129,1600.0,0.00018844,2]
[360134663,1746562271025,1600.0,0.00025911,120]
[360134664,1746562271266,1600.0,0.00028266,120]
[360134665,1746562294224,158.98,0.00018844,2]
[360134666,1746562399841,500.0,0.00029799,120]
[360134667,1746562503097,680.07215739,0.00030137,120]
[360134668,1746562503128,1651.99549912,0.00030137,120]
[360134669,1746562507125,1973.93,0.0003013,120]
[360134670,1746562533061,700.0,0.00030136,120]
[360134671,1746562533355,700.0,0.00030136,120]
[360134672,1746562533613,700.0,0.00030136,120]
[360134673,1746562533912,700.0,0.00030136,120]
[360134674,1746562534195,795.57763696,0.00030136,120]
[360134675,1746562729264,250.0,0.00017,2]
[360134676,1746562730380,300.0,0.00019,2]
[360134677,1746562803705,500.0,0.00019897,120]
[360134678,1746562803812,500.0,0.00019983,120]
[360134679,1746562804056,500.0,0.00019985,120]
[360134680,1746562804315,500.0,0.00019993,120]
[360134681,1746562804943,500.0,0.00019996,120]
[360134682,1746562805242,500.0,0.00019997,120]
[360134683,1746562805508,500.0,0.00019998,120]
[360134684,1746562805764,500.0,0.00019998,120]
[360134685,1746562806032,500.0,0.00019998,120]
[360134686,1746562806285,500.0,0.00019998,120]
[360134687,1746562806565,183.0920608,0.00019999,120]
[360134688,1746562840801,1000.0,0.00018844,2]
[360134689,1746562865897,974.54,0.00016967,2]
[360134690,1746562866102,974.54,0.00019231,2]
[360134691,1746562901126,10033.81203274,0.00018997,2]
[360134692,1746563000231,500.0,0.00028882,120]
[360134693,1746563106479,1973.93,0.0003013,120]
[360134694,1746563128854,430.33720331,0.00023,120]
[360134695,1746563133227,1245.98839923,0.0002,120]
[360134696,1746563134969,1015.55024089,0.0003013,120]
[360134697,1746563187753,158046.76727855,0.0003,30]
[360134698,1746563214277,7000.0,0.00019501,2]
[360134699,1746563230863,2274.05793546,0.00021,120]
[360134700,1746563231710,932.60581856,0.0003,120]
[360134701,1746563232057,2359.13265706,0.0002301,120]
[360134703,1746563266838,180.8022909,0.00028,120]
[360134704,1746563268648,1157.2803014,0.0003,120]
[360134705,1746563273879,2020.0,0.0002,120]
[360134706,1746563314194,283.68854707,0.00028799,120]
[360134707,1746563316890,1851.48945513,0.0003,120]
[360134708,1746563317268,151.02711182,0.0003,120]
[360134712,1746563326476,652.79032359,0.0002,120]
[360134713,1746563327775,2040.34982325,0.00030137,120]
[360134735,1746563431771,-187.11466006,0.0001955,2]
[360134738,1746563431783,-200.0,0.00019575,2]
[360134741,1746563431792,-575.6157526,0.000196,2]
[360134743,1746563431802,-200.0,0.0001962,2]
[360134745,1746563431812,-300.0,0.00019649,2]
[360134746,1746563431821,-593.79708734,0.00019649,2]
[360134747,1746563431833,-417.49656767,0.00019649,2]
[360134773,1746563437837,-188.70634499,0.00019649,2]
[360134774,1746563437846,-185.89517384,0.00019649,2]
[360134775,1746563437856,-1039.88495993,0.0001965,2]
[360134776,1746563437948,-5464.28979694,0.0001965,2]
[360134777,1746563437960,-5534.73604492,0.0001965,2]
[360134793,1746563439990,-1605.79480528,0.0001965,2]
[360134794,1746563440002,-18211.13172644,0.0001965,2]
[360134795,1746563440013,-116426.26666909,0.0001965,2]
[360134796,1746563440023,-1035.09709359,0.00019689,2]
[360134797,1746563440032,-3690.02542353,0.00019694,2]
[360134798,1746563440042,-1875.02,0.00019699,2]
[360134799,1746563440051,-4687.5,0.000197,2]
[360134800,1746563440060,-2686.67775541,0.00019708,2]
[360134801,1746563440070,-88812.3534422,0.0001971,2]
[360134802,1746563440079,-22912.43010605,0.00019726,2]
[360134803,1746563440089,-2892.81087401,0.00019729,2]
[360134804,1746563440098,-2686.67775536,0.00019729,2]
[360134805,1746563440107,-150.0,0.0001973,2]
[360134806,1746563440117,-14460.09374715,0.00019734,2]
[360134807,1746563440127,-35745.40764955,0.00019736,2]
[360134808,1746563440137,-1035.09709359,0.00019742,2]
[360134809,1746563440146,-151.00545197,0.00019743,2]
[360134810,1746563440157,-674.73571333,0.00019744,2]
[360134811,1746563440166,-1703.24059466,0.00019745,2]
[360134812,1746563440176,-2892.810874,0.00019748,2]
[360134813,1746563440185,-2686.67775536,0.00019751,2]
[360134814,1746563440195,-88812.3534422,0.00019752,2]
[360134815,1746563440205,-150.0,0.00019756,2]
[360134816,1746563440215,-2146.85609599,0.00019758,2]
[360134817,1746563440225,-22912.43010605,0.00019765,2]
[360134818,1746563440235,-619.284972,0.00019765,2]
[360134819,1746563440245,-150.0,0.00019766,2]
[360134820,1746563440255,-150.0,0.00019766,2]
[360134821,1746563440264,-3690.02542353,0.00019767,2]
[360134822,1746563440274,-2892.810874,0.00019767,2]
[360134823,1746563440283,-150.0,0.00019768,2]
[360134824,1746563440293,-1703.24059466,0.00019771,2]
[360134825,1746563440302,-2686.67775536,0.00019772,2]
[360134826,1746563440312,-500.0,0.00019773,2]
[360134827,1746563440321,-500.0,0.00019773,2]
[360134828,1746563440331,-500.0,0.00019773,2]
[360134829,1746563440340,-150.0,0.00019776,2]
[360134830,1746563440349,-2146.85609599,0.00019781,2]
[360134831,1746563440359,-619.284972,0.00019785,2]
[360134832,1746563440373,-2892.810874,0.00019786,2]
[360134833,1746563440383,-14460.09374715,0.00019786,2]
[360134834,1746563440393,-2686.67775536,0.00019793,2]
[360134835,1746563440402,-150.0,0.00019794,2]
[360134836,1746563440411,-150.0,0.00019794,2]
[360134837,1746563440421,-35745.40764955,0.00019795,2]
[360134838,1746563440431,-674.73571333,0.00019798,2]
[360134839,1746563440443,-500.0,0.00019799,2]
[360134840,1746563440452,-510.48,0.00019799,2]
[360134841,1746563440462,-470.0,0.00019799,2]
[360134842,1746563440472,-450.0,0.00019799,2]
[360134843,1746563440480,-450.0,0.00019799,2]
[360134844,1746563440490,-470.0,0.00019799,2]
[360134845,1746563440499,-450.0,0.00019799,2]
[360134846,1746563440508,-470.0,0.00019799,2]
[360134847,1746563440518,-470.0,0.00019799,2]
[360134848,1746563440528,-450.0,0.00019799,2]
[360134849,1746563440537,-450.0,0.00019799,2]
[360134850,1746563440546,-450.0,0.00019799,2]
[360134851,1746563440555,-520.0,0.00019799,2]
[360134852,1746563440564,-450.0,0.00019799,2]
[360134853,1746563440573,-93972.33804903,0.000198,5]
[360134854,1746563440590,-695.072,0.000198,5]
[360134855,1746563440606,-8064.3617255,0.000198,5]
[360134856,1746563440618,-2200.0,0.000198,5]
[360134857,1746563440628,-7242.98743089,0.000198,5]
[360134858,1746563440639,-11104.40000003,0.000198,5]
[360134859,1746563440650,-18577.6464,0.000198,5]
[360134860,1746563440661,-32083.58879179,0.000198,5]
[360134861,1746563440670,-150.0,0.00019805,2]
[360134862,1746563440679,-2892.810874,0.00019805,2]
[360134863,1746563440688,-150.0,0.00019807,2]
[360134864,1746563440698,-240.790862,0.00019809,2]
[360134865,1746563440707,-208.356,0.00019809,2]
[360134866,1746563440717,-152.679406,0.00019809,2]
[360134867,1746563440726,-352.820607,0.00019809,2]
[360134868,1746563440735,-1741.822495,0.00019809,2]
[360134869,1746563440745,-2686.67775536,0.00019815,2]
[360134870,1746563440754,-150.0,0.00019815,2]
[360134871,1746563440763,-150.0,0.00019815,2]
[360134872,1746563440773,-207.4,0.0001982,2]
[360134873,1746563440782,-150.0,0.00019821,2]
[360134874,1746563440791,-150.0,0.00019821,2]
[360134875,1746563440800,-5800.0,0.00019824,2]
[360134876,1746563440810,-2892.810874,0.00019824,2]
[360134877,1746563440819,-150.0,0.00019829,2]
[360134878,1746563440829,-5800.0,0.00019832,2]
[360134879,1746563440838,-150.0,0.00019834,2]
[360134880,1746563440847,-150.0,0.00019836,2]
[360134881,1746563440857,-2686.67775536,0.00019836,2]
[360134882,1746563440866,-5800.0,0.00019841,2]
[360134883,1746563440875,-150.0,0.00019841,2]
[360134884,1746563440884,-150.0,0.00019841,2]
[360134885,1746563440894,-2892.810874,0.00019843,2]
[360134886,1746563440904,-150.0,0.00019845,2]
[360134887,1746563440917,-5800.0,0.00019849,2]
[360134888,1746563440926,-150.0,0.0001985,2]
[360134889,1746563440937,-150.0,0.00019853,2]
[360134890,1746563440946,-2686.67775536,0.00019857,2]
[360134891,1746563440956,-2310.95311277,0.00019858,2]
[360134892,1746563440968,-1076.21094039,0.00019858,2]
[360134893,1746563440980,-2412.83594684,0.00019858,2]
[360134894,1746563440989,-150.0,0.00019858,2]
[360134895,1746563440998,-2892.810874,0.00019862,2]
[360134896,1746563441007,-150.0,0.00019863,2]
[360134897,1746563441017,-109.48058725,0.00019866,2]
[360134898,1746563441028,-475.65518,0.00019866,2]
[360134899,1746563441039,-1506.47426305,0.00019866,2]
[360134900,1746563441050,-3256.66596578,0.00019866,2]
[360134901,1746563441061,-451.72400392,0.00019866,2]
[360134902,1746563441070,-150.0,0.0001987,2]
[360134903,1746563441079,-150.0,0.00019871,2]
[360134904,1746563441089,-150.0,0.00019872,2]
[360134905,1746563441098,-499.87599608,0.00019873,2]
[360134916,1746563442865,-0.12400392,0.00019873,2]
[360134917,1746563442875,-500.0,0.00019873,2]
[360134918,1746563442885,-500.0,0.00019873,2]
[360134919,1746563442894,-500.0,0.00019873,2]
[360134920,1746563442903,-500.0,0.00019873,2]
[360134921,1746563443105,-5800.0,0.00019875,2]
[360134922,1746563443115,-2686.67775536,0.00019879,2]
[360134923,1746563443124,-2892.810874,0.00019881,2]
[360134924,1746563443133,-150.0,0.00019883,2]
[360134925,1746563443143,-5800.0,0.00019883,2]
[360134926,1746563443152,-50.38736672,0.00019892,2]
[360134930,1746563448200,-5749.61263328,0.00019892,2]
[360134931,1746563448210,-470.0,0.00019895,2]
[360134932,1746563448219,-450.0,0.00019895,2]
[360134933,1746563448230,-450.0,0.00019895,2]
[360134934,1746563448239,-450.0,0.00019895,2]
[360134935,1746563448249,-412.38084859,0.00019895,2]
[360134936,1746563448259,-450.0,0.00019895,2]
[360134937,1746563448269,-450.0,0.00019895,2]
[360134938,1746563448278,-470.0,0.00019895,2]
[360134939,1746563448287,-450.0,0.00019895,2]
[360134940,1746563448297,-260.4423311,0.00019895,2]
[360134941,1746563448309,-450.0,0.00019895,2]
[360134942,1746563448319,-450.0,0.00019895,2]
[360134943,1746563448329,-450.0,0.00019895,2]
[360134944,1746563448338,-450.0,0.00019895,2]
[360134945,1746563448347,-470.0,0.00019895,2]
[360134946,1746563448357,-450.0,0.00019895,2]
[360134947,1746563448366,-450.0,0.00019895,2]
[360134948,1746563448376,-450.0,0.00019895,2]
[360134949,1746563448386,-450.0,0.00019895,2]
[360134950,1746563448396,-450.0,0.00019895,2]
[360134951,1746563448405,-470.0,0.00019895,2]
[360134952,1746563448414,-450.0,0.00019895,2]
[360134953,1746563448424,-450.0,0.00019895,2]
[360134954,1746563448434,-450.0,0.00019895,2]
[360134955,1746563448443,-450.0,0.00019895,2]
[360134956,1746563448453,-450.0,0.00019895,2]
[360134957,1746563448462,-450.0,0.00019895,2]
[360134958,1746563448472,-470.0,0.00019895,2]
[360134959,1746563448482,-450.0,0.00019895,2]
[360134960,1746563448492,-1110.57,0.00019895,2]
[360134961,1746563448502,-450.0,0.00019895,2]
[360134962,1746563448511,-450.0,0.00019895,2]
[360134963,1746563448521,-450.0,0.00019895,2]
[360134964,1746563448530,-450.0,0.00019895,2]
[360134965,1746563448540,-450.0,0.00019895,2]
[360134966,1746563448550,-450.0,0.00019895,2]
[360134967,1746563448559,-450.0,0.00019895,2]
[360134968,1746563448569,-1849.16,0.00019895,2]
[360134969,1746563448578,-450.0,0.00019895,2]
[360134970,1746563448588,-470.0,0.00019895,2]
[360134971,1746563448598,-352.820607,0.00019896,2]
[360134972,1746563448609,-1741.822495,0.00019896,2]
[360134973,1746563448618,-352.820607,0.00019897,2]
[360134974,1746563448627,-1741.822495,0.00019897,2]
[360134975,1746563448636,-450.0,0.00019897,2]
[360134976,1746563448646,-152.19215717,0.00019897,2]
[360134977,1746563448656,-450.0,0.00019897,2]
[360134978,1746563448666,-490.0,0.00019897,2]
[360134979,1746563448675,-490.0,0.00019897,2]
[360134980,1746563448684,-450.0,0.00019897,2]
[360134981,1746563448694,-450.0,0.00019897,2]
[360134982,1746563448703,-490.0,0.00019897,2]
[360134983,1746563448713,-470.0,0.00019897,2]
[360134984,1746563448723,-450.0,0.00019897,2]
[360134985,1746563448732,-568.12,0.00019897,2]
[360134986,1746563448741,-450.0,0.00019897,2]
[360134987,1746563448752,-450.0,0.00019897,2]
[360134988,1746563448762,-470.0,0.00019897,2]
[360134989,1746563448773,-450.0,0.00019897,2]
[360134990,1746563448783,-470.0,0.00019897,2]
[360134991,1746563448793,-2248.46,0.00019897,2]
[360134992,1746563448804,-470.0,0.00019897,2]
[360134993,1746563448813,-470.0,0.00019897,2]
[360134994,1746563448823,-473.31,0.00019897,2]
[360134995,1746563448833,-450.0,0.00019897,2]
[360134996,1746563448842,-450.0,0.00019897,2]
[360134997,1746563448852,-352.820607,0.00019898,2]
[360134998,1746563448861,-1741.822495,0.00019898,2]
[360134999,1746563448871,-5000.0,0.00019899,2]
[360135000,1746563448881,-208.356,0.00019899,2]
[360135001,1746563448891,-152.679406,0.00019899,2]
[360135002,1746563448900,-352.820607,0.00019899,2]
[360135003,1746563448910,-352.820607,0.00019899,2]
[360135004,1746563448920,-352.820607,0.00019899,2]
[360135005,1746563448934,-352.820607,0.00019899,2]
[360135006,1746563448944,-1741.822495,0.00019899,2]
[360135007,1746563448954,-1741.822495,0.00019899,2]
[360135008,1746563448964,-1741.822495,0.00019899,2]
[360135009,1746563448974,-1741.822495,0.00019899,2]
[360135010,1746563448984,-1025.6186881,0.00019899,2]
[360135011,1746563448994,-450.0,0.00019899,2]
[360135012,1746563449003,-508.96,0.00019899,2]
[360135013,1746563449014,-450.0,0.00019899,2]
[360135014,1746563449023,-450.0,0.00019899,2]
[360135015,1746563449032,-450.0,0.00019899,2]
[360135016,1746563449042,-12500.0,0.000199,2]
[360135017,1746563449051,-307.06590877,0.000199,2]
[360135018,1746563449060,-5800.0,0.000199,2]
[360135019,1746563449069,-12500.0,0.000199,2]
[360135020,1746563449078,-2686.67775536,0.000199,2]
[360135021,1746563449088,-565.45571036,0.000199,2]
[360135022,1746563449097,-2892.810874,0.000199,2]
[360135023,1746563449106,-150.0,0.00019918,7]
[360135024,1746563449117,-150.0,0.00019918,2]
[360135025,1746563449126,-2180.134,0.00019922,2]
[360135026,1746563449136,-190.663,0.00019929,2]
[360135027,1746563449145,-150.0,0.00019945,2]
[360135028,1746563449155,-150.0,0.00019948,2]
[360135029,1746563449164,-150.0,0.00019965,2]
[360135030,1746563449174,-150.0,0.00019969,2]
[360135031,1746563449185,-7253.88305285,0.00019969,2]
[360135032,1746563449195,-500.0,0.00019973,2]
[360135033,1746563449204,-500.0,0.00019973,2]
[360135034,1746563449213,-500.0,0.00019973,2]
[360135035,1746563449223,-300.0,0.00019973,2]
[360135036,1746563449232,-500.0,0.00019973,2]
[360135037,1746563449243,-206.32422119,0.00019973,2]
[360135038,1746563449252,-164.50740952,0.00019973,2]
[360135039,1746563449262,-150.0,0.00019976,2]
[360135040,1746563449271,-500.0,0.00019982,2]
[360135041,1746563449280,-594.03258974,0.00019982,2]
[360135042,1746563449289,-470.0,0.00019983,2]
[360135043,1746563449299,-450.0,0.00019983,2]
[360135044,1746563449308,-405.88,0.00019983,2]
[360135045,1746563449318,-575.6,0.00019983,2]
[360135046,1746563449327,-450.0,0.00019983,2]
[360135047,1746563449337,-470.0,0.00019983,2]
[360135048,1746563449346,-450.0,0.00019983,2]
[360135049,1746563449355,-555.54113625,0.00019983,2]
[360135050,1746563449364,-450.0,0.00019983,2]
[360135051,1746563449373,-470.0,0.00019983,2]
[360135052,1746563449382,-450.0,0.00019983,2]
[360135053,1746563449391,-330.49346589,0.00019983,2]
[360135054,1746563449401,-450.0,0.00019983,2]
[360135055,1746563449411,-2248.46,0.00019983,2]
[360135056,1746563449420,-473.31,0.00019983,2]
[360135057,1746563449429,-617.94,0.00019983,2]
[360135058,1746563449438,-450.0,0.00019983,2]
[360135059,1746563449448,-450.0,0.00019983,2]
[360135060,1746563449457,-450.0,0.00019983,2]
[360135061,1746563449466,-450.0,0.00019983,2]
[360135062,1746563449476,-450.0,0.00019983,2]
[360135063,1746563449486,-340.02328452,0.00019983,2]
[360135064,1746563449495,-500.0,0.00019983,2]
[360135065,1746563449504,-450.0,0.00019983,2]
[360135066,1746563449514,-396.2,0.00019983,2]
[360135067,1746563449524,-450.0,0.00019983,2]
[360135068,1746563449533,-450.0,0.00019983,2]
[360135069,1746563449542,-450.0,0.00019983,2]
[360135070,1746563449552,-450.0,0.00019983,2]
[360135071,1746563449560,-291.83,0.00019983,2]
[360135072,1746563449570,-450.0,0.00019983,2]
[360135073,1746563449579,-450.0,0.00019983,2]
[360135074,1746563449588,-450.0,0.00019983,2]
[360135075,1746563449597,-1963.78,0.00019983,2]
[360135076,1746563449606,-450.0,0.00019983,2]
[360135077,1746563449615,-450.0,0.00019983,2]
[360135078,1746563449624,-535.09,0.00019983,2]
[360135079,1746563449635,-450.0,0.00019983,2]
[360135080,1746563449644,-217.7,0.00019983,2]
[360135081,1746563449654,-152.679406,0.00019984,2]
[360135082,1746563449663,-352.820607,0.00019984,2]
[360135083,1746563449673,-352.820607,0.00019984,2]
[360135084,1746563449682,-1741.822495,0.00019984,2]
[360135085,1746563449692,-1741.822495,0.00019984,2]
[360135086,1746563449701,-1000.0,0.00019984,2]
[360135087,1746563449711,-1000.0,0.00019984,2]
[360135088,1746563449720,-1000.0,0.00019984,2]
[360135089,1746563449730,-1000.01,0.00019984,2]
[360135090,1746563449740,-450.0,0.00019984,2]
[360135091,1746563449750,-450.0,0.00019984,2]
[360135092,1746563449759,-450.0,0.00019984,2]
[360135093,1746563449769,-450.0,0.00019984,2]
[360135094,1746563449779,-450.0,0.00019984,2]
[360135095,1746563449788,-450.0,0.00019984,2]
[360135096,1746563449798,-450.0,0.00019984,2]
[360135097,1746563449807,-450.0,0.00019984,2]
[360135098,1746563449817,-962.93,0.00019984,2]
[360135099,1746563449827,-450.0,0.00019984,2]
[360135100,1746563449836,-450.0,0.00019984,2]
[360135101,1746563449846,-450.0,0.00019984,2]
[360135102,1746563449856,-450.0,0.00019984,2]
[360135103,1746563449866,-450.0,0.00019984,2]
[360135104,1746563449875,-450.0,0.00019984,2]
[360135105,1746563449885,-1560.02,0.00019984,2]
[360135106,1746563449895,-450.0,0.00019984,2]
[360135107,1746563449904,-450.0,0.00019984,2]
[360135108,1746563449914,-450.0,0.00019984,2]
[360135109,1746563449924,-647.66,0.00019984,2]
[360135110,1746563449937,-450.0,0.00019984,2]
[360135111,1746563449947,-450.0,0.00019984,2]
[360135112,1746563449957,-450.0,0.00019984,2]
[360135113,1746563449966,-450.0,0.00019984,2]
[360135114,1746563449976,-450.0,0.00019984,2]
[360135115,1746563449986,-450.0,0.00019984,2]
[360135116,1746563449995,-450.0,0.00019984,2]
[360135117,1746563450004,-280.0,0.00019984,2]
[360135118,1746563450015,-450.0,0.00019984,2]
[360135119,1746563450025,-450.0,0.00019984,2]
[360135120,1746563450035,-450.0,0.00019984,2]
[360135121,1746563450044,-450.0,0.00019984,2]
[360135122,1746563450053,-450.0,0.00019984,2]
[360135123,1746563450063,-245.65,0.00019984,2]
[360135124,1746563450072,-674.48,0.00019984,2]
[360135125,1746563450081,-450.0,0.00019984,2]
[360135126,1746563450090,-450.0,0.00019984,2]
[360135127,1746563450100,-450.0,0.00019984,2]
[360135128,1746563450109,-450.0,0.00019984,2]
[360135129,1746563450119,-450.0,0.00019984,2]
[360135130,1746563450128,-689.01,0.00019984,2]
[360135131,1746563450137,-386.68,0.00019984,2]
[360135132,1746563450146,-450.0,0.00019984,2]
[360135133,1746563450155,-2328.12,0.00019984,2]
[360135134,1746563450165,-450.0,0.00019984,2]
[360135135,1746563450174,-450.0,0.00019984,2]
[360135136,1746563450183,-450.0,0.00019984,2]
[360135137,1746563450193,-347.04,0.00019984,2]
[360135138,1746563450203,-450.0,0.00019984,2]
[360135139,1746563450212,-450.0,0.00019984,2]
[360135140,1746563450221,-393.26758948,0.00019984,2]
[360135141,1746563450231,-450.0,0.00019984,2]
[360135142,1746563450240,-450.0,0.00019984,2]
[360135143,1746563450250,-450.0,0.00019984,2]
[360135144,1746563450259,-450.0,0.00019984,2]
[360135145,1746563450269,-450.0,0.00019984,2]
[360135146,1746563450278,-2259.15,0.00019984,2]
[360135147,1746563450288,-450.0,0.00019984,2]
[360135148,1746563450297,-222.33032389,0.00019984,2]
[360135149,1746563450307,-450.0,0.00019984,2]
[360135150,1746563450316,-450.0,0.00019984,2]
[360135151,1746563450325,-352.820607,0.00019985,2]
[360135152,1746563450335,-1741.822495,0.00019985,2]
[360135153,1746563450344,-450.0,0.00019985,2]
[360135154,1746563450354,-410.16,0.00019985,2]
[360135155,1746563450363,-450.0,0.00019985,2]
[360135156,1746563450372,-450.0,0.00019985,2]
[360135157,1746563450382,-450.0,0.00019985,2]
[360135158,1746563450391,-2248.46,0.00019985,2]
[360135159,1746563450400,-473.31,0.00019985,2]
[360135160,1746563450410,-175.90671928,0.00019986,2]
[360135161,1746563450419,-823.706615,0.00019986,2]
[360135162,1746563450429,-823.706615,0.00019986,2]
[360135163,1746563450439,-150.0,0.00019988,2]
[360135164,1746563450448,-9548.82668057,0.0001999,2]
[360135165,1746563450457,-450.0,0.00019993,2]
[360135166,1746563450466,-450.0,0.00019993,2]
[360135167,1746563450476,-450.0,0.00019993,2]
[360135168,1746563450486,-450.0,0.00019993,2]
[360135169,1746563450496,-550.53,0.00019993,2]
[360135170,1746563450506,-450.0,0.00019993,2]
[360135171,1746563450515,-450.0,0.00019993,2]
[360135172,1746563450525,-500.0,0.00019993,2]
[360135173,1746563450534,-490.0,0.00019993,2]
[360135174,1746563450544,-490.0,0.00019993,2]
[360135175,1746563450553,-450.0,0.00019993,2]
[360135176,1746563450562,-490.0,0.00019993,2]
[360135177,1746563450572,-450.0,0.00019993,2]
[360135178,1746563450581,-450.0,0.00019993,2]
[360135179,1746563450591,-490.0,0.00019993,2]
[360135180,1746563450600,-450.0,0.00019993,2]
[360135181,1746563450610,-490.0,0.00019993,2]
[360135182,1746563450619,-450.0,0.00019993,2]
[360135183,1746563450629,-490.0,0.00019993,2]
[360135184,1746563450639,-490.0,0.00019993,2]
[360135185,1746563450648,-450.0,0.00019993,2]
[360135186,1746563450659,-2248.46,0.00019993,2]
[360135187,1746563450669,-490.0,0.00019993,2]
[360135188,1746563450678,-490.0,0.00019993,2]
[360135189,1746563450688,-490.0,0.00019993,2]
[360135190,1746563450698,-450.0,0.00019993,2]
[360135191,1746563450708,-450.0,0.00019993,2]
[360135192,1746563450717,-2532.4,0.00019993,2]
[360135193,1746563450728,-490.0,0.00019993,2]
[360135194,1746563450738,-490.0,0.00019993,2]
[360135195,1746563450747,-473.31,0.00019993,2]
[360135196,1746563450756,-695.91,0.00019993,2]
[360135197,1746563450766,-450.0,0.00019993,2]
[360135198,1746563450775,-458.79,0.00019993,2]
[360135199,1746563450785,-452.61659452,0.00019993,2]
[360135200,1746563450794,-15243.09,0.00019993,2]
[360135201,1746563450804,-450.0,0.00019993,2]
[360135202,1746563450814,-586.74569545,0.00019993,2]
[360135203,1746563450823,-490.0,0.00019993,2]
[360135204,1746563450832,-450.0,0.00019993,2]
[360135205,1746563450841,-520.0,0.00019993,2]
[360135206,1746563450850,-470.0,0.00019993,2]
[360135207,1746563450860,-450.0,0.00019993,2]
[360135208,1746563450869,-450.0,0.00019993,2]
[360135209,1746563450880,-160.73989368,0.00019993,2]
[360135210,1746563450889,-490.0,0.00019993,2]
[360135211,1746563450898,-500.0,0.00019993,2]
[360135212,1746563450908,-470.0,0.00019993,2]
[360135213,1746563451101,-450.0,0.00019993,2]
[360135214,1746563451111,-490.0,0.00019993,2]
[360135215,1746563451121,-420.30240514,0.00019993,2]
[360135216,1746563451131,-450.0,0.00019993,2]
[360135217,1746563451140,-450.0,0.00019993,2]